bitfinex/quotes_BTCUSD_20240721
["timestamp","ask_amount","ask_price","bid_price","bid_amount"]
[1721552764348,0.00084,66904.0,66903.0,0.82490716]
[1721552765137,0.00084,66904.0,66903.0,0.82490608]
[1721552765333,0.00084,66904.0,66903.0,0.700804]
[1721552765536,0.00084,66904.0,66903.0,0.82490608]
[1721552771139,0.00084,66904.0,66903.0,0.700804]
[1721552778199,0.06884,66904.0,66903.0,1.09433774]
[1721552779299,0.06884,66904.0,66903.0,1.45695297]
[1721552779710,0.06884,66904.0,66903.0,1.40458652]
[1721552780090,0.06884,66904.0,66903.0,1.45695106]
[1721552780652,0.06884,66904.0,66903.0,1.40458652]
[1721552781589,0.06884,66904.0,66903.0,1.45695204]
[1721552782000,0.06884,66904.0,66903.0,0.8242663]
[1721552782184,0.12894,66904.0,66903.0,0.8242663]
[1721552782387,0.12894,66904.0,66903.0,0.82426236]
[1721552785894,0.12894,66904.0,66903.0,0.461652]
[1721552786091,0.12894,66904.0,66903.0,0.82426235]
[1721552786635,0.12894,66904.0,66903.0,0.82426214]
[1721552789427,0.12894,66904.0,66903.0,0.82425905]
[1721552792620,0.12894,66904.0,66903.0,0.461652]
[1721552792868,0.12894,66904.0,66903.0,0.82426048]
[1721552793094,0.12894,66904.0,66903.0,0.82425941]
[1721552796064,0.12894,66904.0,66903.0,0.461652]
[1721552796265,0.12894,66904.0,66903.0,0.82424698]
[1721552798497,0.12894,66904.0,66903.0,0.77189665]
[1721552799502,0.12894,66904.0,66903.0,0.77189648]
[1721552801417,0.06884,66904.0,66903.0,1.01104848]
[1721552802566,0.06884,66904.0,66903.0,0.700804]
[1721552802790,0.06884,66904.0,66903.0,1.01104853]
[1721552805540,0.06884,66904.0,66903.0,1.25020053]
[1721552805722,0.06884,66904.0,66903.0,0.700804]
[1721552805923,0.06884,66904.0,66903.0,1.25020053]
[1721552807664,0.06884,66904.0,66903.0,1.01104853]
[1721552808462,0.06884,66904.0,66903.0,1.25020053]
[1721552808669,0.00084,66904.0,66903.0,1.25020053]
[1721552809095,0.00084,66904.0,66903.0,1.06405381]
[1721552809296,0.00084,66904.0,66903.0,1.25020053]
[1721552812397,0.00084,66904.0,66903.0,0.939956]
[1721552812596,0.00084,66904.0,66903.0,1.25020053]
[1721552815664,0.00084,66904.0,66903.0,1.55338227]
[1721552815863,0.00084,66904.0,66903.0,1.95203936]
[1721552816173,0.00084,66904.0,66903.0,2.12386525]
[1721552816982,0.00084,66904.0,66903.0,2.12186525]
[1721552817193,0.00284,66904.0,66903.0,2.12386525]
[1721552817368,0.00284,66904.0,66903.0,1.97234717]
[1721552817369,0.00184,66904.0,66903.0,1.97234717]
[1721552817558,0.00084,66904.0,66903.0,1.88271325]
[1721552817909,0.00084,66904.0,66903.0,2.21349976]
[1721552817910,0.00284,66904.0,66903.0,2.21349976]
[1721552818470,0.00284,66904.0,66903.0,1.97434776]
[1721552819002,0.00284,66904.0,66903.0,2.21345825]
[1721552820007,0.00284,66904.0,66903.0,1.97430625]
[1721552820572,0.00284,66904.0,66903.0,2.21345825]
[1721552821255,0.00284,66904.0,66903.0,2.12383739]
[1721552821465,0.00284,66904.0,66903.0,1.88468535]
[1721552821969,0.00284,66904.0,66903.0,1.87928535]
[1721552823355,0.00184,66904.0,66903.0,1.87928535]
[1721552823771,0.00184,66904.0,66903.0,1.87728535]
[1721552823927,0.00184,66904.0,66903.0,1.88128535]
[1721552824632,0.00284,66904.0,66903.0,1.88128535]
[1721552825859,0.00284,66904.0,66903.0,1.88437152]
[1721552827625,0.00284,66904.0,66903.0,1.8843657]
[1721552828818,0.00184,66904.0,66903.0,1.8803657]
[1721552829637,0.00084,66904.0,66903.0,1.8803657]
[1721552830024,0.00184,66904.0,66903.0,1.8803657]
[1721552830283,0.00284,66904.0,66903.0,1.55302692]
[1721552830493,0.00184,66904.0,66903.0,1.55302692]
[1721552830693,0.00084,66904.0,66903.0,1.54902692]
[1721552830827,0.00184,66904.0,66903.0,1.54902692]
[1721552831046,0.00284,66904.0,66903.0,1.55302692]
[1721552831489,0.00184,66904.0,66903.0,1.55302692]
[1721552831684,0.00084,66904.0,66903.0,1.54902692]
[1721552832162,0.00184,66904.0,66903.0,1.55302692]
[1721552832954,0.00284,66904.0,66903.0,1.55302692]
[1721552833354,0.00284,66904.0,66903.0,1.61852692]
[1721552833355,0.00184,66904.0,66903.0,1.61852692]
[1721552833800,0.00284,66904.0,66903.0,1.61852692]
[1721552834170,0.00284,66904.0,66903.0,1.55134657]
[1721552834400,0.00284,66904.0,66903.0,1.61853107]
[1721552834604,0.00284,66904.0,66903.0,1.24113774]
[1721552834759,0.00284,66904.0,66903.0,1.61853038]
[1721552838196,0.00284,66904.0,66903.0,1.55303038]
[1721552839435,0.00284,66904.0,66903.0,1.17563774]
[1721552843440,0.00284,66904.0,66903.0,1.48585069]
[1721552844575,0.00284,66904.0,66903.0,1.17563774]
[1721552844781,0.00284,66904.0,66903.0,1.48584657]
[1721552852557,0.00284,66904.0,66903.0,1.29972127]
[1721552852727,0.00284,66904.0,66903.0,1.48584654]
[1721552852863,0.02626932,66904.0,66903.0,1.48584654]
[1721552853266,0.00284,66904.0,66903.0,1.48584654]
[1721552854113,0.00284,66904.0,66903.0,1.40654654]
[1721552858293,0.00284,66904.0,66903.0,1.73788529]
[1721552858500,0.00284,66904.0,66903.0,1.82754808]
[1721552859478,0.00284,66904.0,66903.0,1.42767649]
[1721552859694,0.00284,66904.0,66903.0,1.73788529]
[1721552862013,0.00284,66904.0,66903.0,1.74788529]
[1721552862670,0.00284,66904.0,66903.0,1.10633774]
[1721552862887,0.00284,66904.0,66903.0,1.74788529]
[1721552869756,0.00284,66904.0,66903.0,1.10633774]
[1721552869932,0.00284,66904.0,66903.0,1.74788529]
[1721552871793,0.00284,66904.0,66903.0,1.86006742]
[1721552871997,0.08024,66904.0,66903.0,1.62091542]
[1721552872152,0.08024,66904.0,66903.0,1.50873329]
[1721552872376,0.08024,66904.0,66903.0,1.41654654]
[1721552872572,0.08024,66904.0,66903.0,1.83763453]
[1721552873250,0.08024,66904.0,66903.0,1.74790096]
[1721552875670,0.00284,66904.0,66903.0,1.43769216]
[1721552875851,0.00284,66904.0,66903.0,1.8376476]
[1721552876093,0.00284,66904.0,66903.0,1.74791403]
[1721552878792,0.00284,66904.0,66903.0,1.10633774]
[1721552878994,0.00284,66904.0,66903.0,1.74789325]
[1721552881387,0.00284,66904.0,66903.0,1.41654996]
[1721552881591,0.00284,66904.0,66903.0,1.74789236]
[1721552884677,0.00284,66904.0,66903.0,1.74789238]
[1721552886673,0.05255362,66904.0,66903.0,1.74789238]
[1721552888081,0.05255362,66904.0,66903.0,1.43768015]
[1721552888290,0.05255362,66904.0,66903.0,1.74789238]
[1721552888489,0.0616,66907.0,66906.0,0.11957]
[1721552888693,0.0616,66907.0,66906.0,1.56106724]
[1721552889379,0.0616,66907.0,66906.0,1.80020824]
[1721552889585,0.0626,66907.0,66906.0,1.80020824]
[1721552889802,0.002,66907.0,66906.0,1.80420824]
[1721552891020,0.001,66907.0,66906.0,1.09537474]
[1721552891200,0.1409,66908.0,66906.0,1.80020816]
[1721552891412,0.1409,66908.0,66907.0,1.30157289]
[1721552892338,0.1409,66908.0,66907.0,1.35157289]
[1721552892569,0.1419,66908.0,66907.0,1.35157289]
[1721552892811,0.1429,66908.0,66907.0,1.35757289]
[1721552893024,0.1419,66908.0,66907.0,1.35757289]
[1721552894422,0.1429,66908.0,66907.0,1.17144554]
[1721552894629,0.1429,66908.0,66907.0,1.35757274]
[1721552898751,0.1419,66908.0,66907.0,1.35757274]
[1721552899115,0.1419,66908.0,66907.0,1.35157274]
[1721552899313,0.1419,66908.0,66907.0,1.35657274]
[1721552899519,0.1429,66908.0,66907.0,1.35657274]
[1721552902410,0.14374,66908.0,66907.0,1.35657274]
[1721552903396,0.14374,66908.0,66907.0,1.04636074]
[1721552903816,0.14374,66908.0,66907.0,1.35657274]
[1721552904774,0.06824,66908.0,66907.0,1.35657274]
[1721552905388,0.06824,66908.0,66907.0,1.40657274]
[1721552905589,0.06824,66908.0,66907.0,1.47386009]
[1721552907271,0.06824,66908.0,66907.0,1.4738591]
[1721552907678,0.06824,66908.0,66907.0,1.4738587]
[1721552908105,0.00284,66908.0,66907.0,1.94699796]
[1721552908316,0.00284,66908.0,66907.0,3.01899293]
[1721552908529,0.00284,66908.0,66907.0,2.18684801]
[1721552908961,0.00184,66908.0,66907.0,2.11884801]
[1721552909164,0.00184,66908.0,66907.0,2.11384801]
[1721552909589,0.00284,66908.0,66907.0,2.11884801]
[1721552910152,0.00284,66908.0,66907.0,2.77884801]
[1721552910352,0.00284,66908.0,66907.0,2.11878589]
[1721552910560,0.00184,66908.0,66907.0,2.11878589]
[1721552910758,0.00184,66908.0,66907.0,2.23084751]
[1721552911118,0.00184,66908.0,66907.0,2.34884751]
[1721552911383,0.00184,66908.0,66907.0,3.27139085]
[1721552911546,0.00284,66908.0,66907.0,3.5108818]
[1721552911772,0.00284,66908.0,66907.0,3.37639085]
[1721552912150,0.00184,66908.0,66907.0,3.37139085]
[1721552912371,0.00184,66908.0,66907.0,3.36639085]
[1721552912372,0.00084,66908.0,66907.0,3.36639085]
[1721552912587,0.00184,66908.0,66907.0,3.39139085]
[1721552912995,0.00184,66908.0,66907.0,2.76739085]
[1721552913194,0.00184,66908.0,66907.0,3.57739085]
[1721552913419,0.00184,66908.0,66907.0,3.20405281]
[1721552913668,0.00184,66908.0,66907.0,3.53161976]
[1721552913897,0.00184,66908.0,66907.0,3.53633532]
[1721552913898,0.00084,66908.0,66907.0,3.53633532]
[1721552914114,0.00084,66908.0,66907.0,3.37633532]
[1721552914348,0.00184,66908.0,66907.0,3.52261489]
[1721552914553,0.00184,66908.0,66907.0,3.53661489]
[1721552914754,0.00084,66908.0,66907.0,3.52461489]
[1721552915068,0.00184,66908.0,66907.0,2.90461489]
[1721552915273,0.00184,66908.0,66907.0,2.91861489]
[1721552915478,0.00184,66908.0,66907.0,3.53433311]
[1721552915679,0.00184,66908.0,66907.0,2.78433311]
[1721552915853,0.00184,66908.0,66907.0,3.57433311]
[1721552916695,0.00184,66908.0,66907.0,3.5742846]
[1721552917088,0.00184,66908.0,66907.0,2.7842846]
[1721552917309,0.00184,66908.0,66907.0,3.5242846]
[1721552918462,0.00184,66908.0,66907.0,3.4742846]
[1721552919070,0.00184,66908.0,66907.0,2.7342846]
[1721552919285,0.00184,66908.0,66907.0,2.30370961]
[1721552919472,0.00184,66908.0,66907.0,2.1772835]
[1721552919871,0.00184,66908.0,66907.0,1.95661952]
[1721552920099,0.00184,66908.0,66907.0,2.26677615]
[1721552921868,0.00184,66908.0,66907.0,2.1773374]
[1721552922021,0.00184,66908.0,66907.0,2.26677068]
[1721552922227,0.00184,66908.0,66907.0,2.1773374]
[1721552923236,0.00184,66908.0,66907.0,2.17733186]
[1721552923434,0.00184,66908.0,66907.0,2.26675169]
[1721552924037,0.00184,66908.0,66907.0,2.17733186]
[1721552924240,0.00184,66908.0,66907.0,2.26674948]
[1721552924980,0.00184,66908.0,66907.0,2.17733186]
[1721552925319,0.00184,66908.0,66907.0,2.94733186]
[1721552925549,0.00184,66908.0,66907.0,3.00936193]
[1721552925747,0.00184,66908.0,66907.0,3.17216193]
[1721552925975,0.00184,66908.0,66907.0,3.22216193]
[1721552926384,0.00184,66908.0,66907.0,2.46869774]
[1721552926556,0.00184,66908.0,66907.0,3.22215194]
[1721552927795,0.00184,66908.0,66907.0,2.56215194]
[1721552929068,0.00184,66908.0,66907.0,3.33215194]
[1721552929609,0.00184,66908.0,66907.0,2.62869774]
[1721552929808,0.00184,66908.0,66907.0,3.33215194]
[1721552930010,0.00174,66908.0,66907.0,3.33215194]
[1721552931434,0.00174,66908.0,66907.0,3.39128894]
[1721552931601,0.00174,66908.0,66907.0,3.50303636]
[1721552931991,0.00174,66908.0,66907.0,3.92024675]
[1721552932189,0.00174,66908.0,66907.0,3.80849933]
[1721552932401,0.00136514,66908.0,66907.0,3.80849933]
[1721552933046,1e-08,66908.0,66907.0,3.80845318]
[1721552933317,1e-08,66908.0,66907.0,3.43629642]
[1721552933549,1e-08,66908.0,66907.0,3.80842625]
[1721552936035,1e-08,66908.0,66907.0,3.41516234]
[1721552936238,1e-08,66908.0,66907.0,3.808437]
[1721552936635,0.00084001,66908.0,66907.0,3.808437]
[1721552939452,0.00084001,66908.0,66907.0,3.80843532]
[1721552941937,0.00084001,66908.0,66907.0,3.80843634]
[1721552945179,0.00084001,66908.0,66907.0,3.808422]
[1721552945745,0.00084001,66908.0,66907.0,3.94247015]
[1721552947121,0.00084001,66908.0,66907.0,4.208422]
[1721552947122,1e-08,66908.0,66907.0,4.208422]
[1721552947323,0.0803,66928.0,66907.0,4.208422]
[1721552947324,0.0803,66928.0,66924.0,1.514923]
[1721552947521,0.0616,66930.0,66924.0,3.45509985]
[1721552947522,0.1419,66930.0,66924.0,3.45509985]
[1721552947700,0.1419,66930.0,66929.0,0.836706]
[1721552947898,0.1419,66930.0,66929.0,1.39587306]
[1721552948099,0.1419,66930.0,66929.0,1.32182702]
[1721552948339,0.0616,66930.0,66929.0,1.68488281]
[1721552948544,0.00084,66936.0,66935.0,0.886629]
[1721552948815,0.00084,66936.0,66935.0,1.40107659]
[1721552949238,0.14274,66936.0,66935.0,1.64011359]
[1721552949441,0.06244,66936.0,66935.0,1.64011359]
[1721552949646,0.06244,66936.0,66935.0,1.70811359]
[1721552949848,0.06244,66936.0,66935.0,1.64011359]
[1721552950056,0.00084,66936.0,66935.0,1.64011359]
[1721552950258,0.00084,66936.0,66935.0,1.69011359]
[1721552950462,0.00084,66936.0,66935.0,2.46011892]
[1721552950633,0.00084,66936.0,66935.0,2.46111892]
[1721552950885,0.00084,66936.0,66935.0,2.94976098]
[1721552951093,0.00084,66936.0,66935.0,3.48489798]
[1721552951311,0.00084,66936.0,66935.0,4.24489798]
[1721552951521,0.00836,66945.0,66935.0,4.24489798]
[1721552951522,0.00836,66945.0,66943.0,1.43304]
[1721552951725,0.00836,66945.0,66943.0,2.14550574]
[1721552951934,0.00836,66945.0,66943.0,2.19550574]
[1721552952188,0.00836,66945.0,66943.0,2.29550574]
[1721552952399,0.00836,66945.0,66943.0,2.08840272]
[1721552952575,0.00836,66945.0,66943.0,2.03840272]
[1721552952806,0.00836,66945.0,66943.0,2.05240272]
[1721552953216,0.00836,66945.0,66943.0,1.98440272]
[1721552953636,0.00836,66945.0,66943.0,2.02895838]
[1721552953989,0.00836,66945.0,66943.0,2.04295838]
[1721552954190,0.00836,66945.0,66943.0,2.02895838]
[1721552954626,0.00836,66945.0,66943.0,2.06640457]
[1721552954853,0.00836,66945.0,66943.0,1.75642174]
[1721552955058,0.00836,66945.0,66943.0,2.06640282]
[1721552955263,0.00836,66945.0,66943.0,1.99840282]
[1721552955672,0.00836,66945.0,66943.0,2.06640282]
[1721552956285,0.00836,66945.0,66943.0,1.99840282]
[1721552956722,0.00836,66945.0,66943.0,2.06640282]
[1721552957336,0.00836,66945.0,66943.0,1.99840282]
[1721552957752,0.00836,66945.0,66943.0,1.75642174]
[1721552957952,0.00836,66945.0,66943.0,2.06640442]
[1721552958157,0.00836,66945.0,66943.0,1.99840442]
[1721552958559,0.00836,66945.0,66943.0,2.06640442]
[1721552958763,0.00836,66945.0,66943.0,2.11640442]
[1721552959079,0.00836,66945.0,66943.0,2.04840442]
[1721552959283,0.00836,66945.0,66943.0,2.03440442]
[1721552959542,0.00836,66945.0,66943.0,1.98440442]
[1721552959779,0.00836,66945.0,66943.0,1.99840442]
[1721552960252,0.00836,66945.0,66943.0,2.05821842]
[1721552960429,0.00836,66945.0,66943.0,2.04421842]
[1721552960630,0.00836,66945.0,66943.0,2.76021842]
[1721552960839,0.00836,66945.0,66943.0,1.74823574]
[1721552961034,0.00836,66945.0,66943.0,2.86821059]
[1721552961262,0.00836,66945.0,66943.0,2.82021059]
[1721552961459,0.00836,66945.0,66943.0,2.83421059]
[1721552961862,0.00836,66945.0,66943.0,2.82021059]
[1721552962276,0.00836,66945.0,66943.0,2.83421059]
[1721552962481,0.00836,66945.0,66943.0,3.03031059]
[1721552963281,0.00836,66945.0,66943.0,3.04431059]
[1721552963522,0.00836,66945.0,66943.0,2.05821059]
[1721552963722,0.00836,66945.0,66943.0,2.11221079]
[1721552964018,0.00836,66945.0,66943.0,2.12621079]
[1721552964220,0.00836,66945.0,66943.0,2.05821079]
[1721552964370,0.00836,66945.0,66943.0,2.05821201]
[1721552965181,0.08806,66945.0,66943.0,1.90071201]
[1721552966406,0.08806,66945.0,66943.0,1.87771201]
[1721552966583,0.08806,66945.0,66943.0,1.94571201]
[1721552966970,0.00836,66945.0,66943.0,1.94571201]
[1721552967166,0.00836,66945.0,66943.0,1.87771201]
[1721552967408,0.00836,66945.0,66943.0,1.56773574]
[1721552967637,0.00836,66945.0,66943.0,1.87772155]
[1721552968344,0.00836,66945.0,66943.0,1.95602155]
[1721552968564,0.00836,66945.0,66943.0,1.87772155]
[1721552969626,0.00836,66945.0,66943.0,1.94572155]
[1721552969768,0.15256,66944.0,66943.0,1.10389806]
[1721552970571,0.15256,66944.0,66943.0,1.08991316]
[1721552970800,0.15256,66944.0,66943.0,0.98991316]
[1721552971004,0.15256,66944.0,66943.0,0.97591316]
[1721552971414,0.15256,66944.0,66943.0,0.98991316]
[1721552971921,0.15356,66944.0,66943.0,1.00091316]
[1721552972547,0.15256,66944.0,66943.0,0.98991316]
[1721552972891,0.15256,66944.0,66943.0,1.00091316]
[1721552972892,0.15356,66944.0,66943.0,1.00091316]
[1721552973975,0.15356,66944.0,66943.0,1.00091432]
[1721552974320,0.15356,66944.0,66943.0,1.23918708]
[1721552975368,0.15356,66944.0,66943.0,1.18693029]
[1721552977100,0.15356,66944.0,66943.0,1.18693024]
[1721552977501,0.15356,66944.0,66943.0,1.18692902]
[1721552984388,0.15356,66944.0,66943.0,1.42593802]
[1721552990018,0.15356,66944.0,66943.0,1.11591274]
[1721552990222,0.15356,66944.0,66943.0,1.42593802]
[1721552991499,0.15356,66944.0,66943.0,0.58940702]
[1721552991675,0.15356,66944.0,66943.0,0.64166459]
[1721552991938,0.15356,66944.0,66943.0,0.40339185]
[1721552992100,0.15356,66944.0,66943.0,0.52289585]
[1721552992458,0.15256,66944.0,66943.0,0.51189585]
[1721552992666,0.15256,66944.0,66943.0,0.49789585]
[1721552992874,0.15256,66944.0,66943.0,0.50389585]
[1721552993080,0.15256,66944.0,66943.0,0.51289585]
[1721552993285,0.15256,66944.0,66943.0,0.38888574]
[1721552993460,0.15256,66944.0,66943.0,0.75118908]
[1721552994096,0.15256,66944.0,66943.0,0.74518908]
[1721552994483,0.15256,66944.0,66943.0,0.74018908]
[1721552994656,0.15256,66944.0,66943.0,0.74718908]
[1721552994859,0.15256,66944.0,66943.0,0.74318908]
[1721552995065,0.15256,66944.0,66943.0,0.1810182]
[1721552995262,0.272062,66944.0,66943.0,0.1840182]
[1721552995637,0.272062,66944.0,66943.0,0.1740182]
[1721552996086,0.272062,66944.0,66943.0,0.1830182]
[1721552996234,0.272062,66944.0,66943.0,0.1770182]
[1721552996429,0.272062,66944.0,66943.0,0.17703349]
[1721552997345,0.272062,66944.0,66943.0,0.17403349]
[1721552997637,0.274062,66944.0,66943.0,0.17403349]
[1721552999717,0.274062,66944.0,66943.0,0.17403164]
[1721552999962,0.274062,66944.0,66943.0,0.22403164]
[1721553000246,0.15456,66944.0,66943.0,0.73692638]
[1721553000467,0.15256,66944.0,66943.0,0.73692638]
[1721553000930,0.15456,66944.0,66943.0,0.73692638]
[1721553001474,0.15456,66944.0,66943.0,0.49791738]
[1721553001475,0.15256,66944.0,66943.0,0.49791738]
[1721553001721,0.15456,66944.0,66943.0,0.49791738]
[1721553002203,0.15456,66944.0,66943.0,0.49791231]
[1721553004638,0.15256,66944.0,66943.0,0.49791246]
[1721553004867,0.15456,66944.0,66943.0,0.49791246]
[1721553007475,0.15256,66944.0,66943.0,0.49791246]
[1721553007912,0.15456,66944.0,66943.0,0.49791246]
[1721553008526,0.15456,66944.0,66943.0,0.49791244]
[1721553008957,0.15256,66944.0,66943.0,0.49791244]
[1721553009389,0.15256,66944.0,66943.0,0.49891244]
[1721553010227,0.15256,66944.0,66943.0,0.49791244]
[1721553010437,0.15356,66944.0,66943.0,0.49791244]
[1721553011065,0.15256,66944.0,66943.0,0.49791244]
[1721553011481,0.15456,66944.0,66943.0,0.49791244]
[1721553011908,0.15256,66944.0,66943.0,0.49791244]
[1721553012110,0.15356,66944.0,66943.0,0.49791244]
[1721553015693,0.00836,66944.0,66943.0,0.7369199]
[1721553015903,0.00836,66944.0,66943.0,0.9779289]
[1721553016108,0.00836,66944.0,66943.0,1.2162378]
[1721553016313,0.00836,66944.0,66943.0,1.16395376]
[1721553017156,0.00836,66944.0,66943.0,1.16595376]
[1721553017363,0.00836,66944.0,66943.0,1.16395376]
[1721553017578,0.00836,66944.0,66943.0,1.17095376]
[1721553017791,0.00836,66944.0,66943.0,1.16895376]
[1721553018054,0.00836,66944.0,66943.0,1.17295376]
[1721553018270,0.00836,66944.0,66943.0,1.17294005]
[1721553018920,0.09156,66944.0,66943.0,1.17294005]
[1721553020191,0.09156,66944.0,66943.0,0.93393105]
[1721553020417,0.15446,66944.0,66943.0,0.50890026]
[1721553022096,0.15446,66944.0,66943.0,0.74790926]
[1721553023893,0.15446,66944.0,66943.0,0.74791946]
[1721553024915,0.00836,66944.0,66943.0,0.98692783]
[1721553026503,0.00836,66944.0,66943.0,1.22523095]
[1721553027508,0.00836,66944.0,66943.0,1.17295419]
[1721553028156,0.00836,66944.0,66943.0,1.17294197]
[1721553028374,0.00836,66944.0,66943.0,0.86290374]
[1721553028587,0.00836,66944.0,66943.0,1.17294189]
[1721553030679,0.00836,66944.0,66943.0,1.17294184]
[1721553031072,0.00836,66944.0,66943.0,0.86290374]
[1721553031273,0.00836,66944.0,66943.0,1.17294054]
[1721553031904,0.00836,66944.0,66943.0,1.41194954]
[1721553037584,0.00836,66944.0,66943.0,1.10191274]
[1721553037787,0.00836,66944.0,66943.0,1.41194869]
[1721553038444,0.00836,66944.0,66943.0,1.59408998]
[1721553038649,0.00836,66944.0,66943.0,1.54934869]
[1721553039085,0.00836,66944.0,66943.0,1.9699679]
[1721553039429,0.00836,66944.0,66943.0,1.88048531]
[1721553040479,0.00836,66944.0,66943.0,1.94838531]
[1721553040697,0.00836,66944.0,66943.0,1.94835174]
[1721553041122,0.00836,66944.0,66943.0,1.88045174]
[1721553041327,0.00836,66944.0,66943.0,1.94752808]
[1721553042368,0.00836,66944.0,66943.0,1.94752551]
[1721553043802,0.00836,66944.0,66943.0,1.23931274]
[1721553044028,0.00836,66944.0,66943.0,1.94752331]
[1721553044239,0.00836,66944.0,66943.0,1.94752002]
[1721553045522,0.00836,66944.0,66943.0,1.88045131]
[1721553046355,0.00836,66944.0,66943.0,1.94751443]
[1721553046770,0.00836,66944.0,66943.0,1.88045131]
[1721553047202,0.00836,66944.0,66943.0,1.54932087]
[1721553047410,0.00836,66944.0,66943.0,1.94750895]
[1721553047621,0.00836,66944.0,66943.0,2.18651795]
[1721553047830,0.00836,66944.0,66943.0,2.2088725]
[1721553048476,0.00836,66944.0,66943.0,2.8588725]
[1721553048896,0.00836,66944.0,66943.0,2.8988725]
[1721553049321,0.00836,66944.0,66943.0,2.8188725]
[1721553049561,0.00836,66944.0,66943.0,2.8888725]
[1721553049976,0.00836,66944.0,66943.0,2.2088725]
[1721553050401,0.00836,66944.0,66943.0,2.11944509]
[1721553051050,0.00836,66944.0,66943.0,2.20884501]
[1721553051264,0.00836,66944.0,66943.0,2.11944509]
[1721553051693,0.00836,66944.0,66943.0,2.16944509]
[1721553051894,0.00836,66944.0,66943.0,2.98884501]
[1721553052104,0.00836,66944.0,66943.0,3.01884501]
[1721553052312,0.00836,66944.0,66943.0,2.30884501]
[1721553052518,0.00836,66944.0,66943.0,2.40884501]
[1721553052737,0.00836,66944.0,66943.0,2.4931944]
[1721553053377,0.00836,66944.0,66943.0,2.3814445]
[1721553053588,0.00836,66944.0,66943.0,2.38140816]
[1721553054247,0.00836,66944.0,66943.0,2.44311228]
[1721553054452,0.00836,66944.0,66943.0,2.59810557]
[1721553055087,0.00836,66944.0,66943.0,2.44311228]
[1721553055296,0.00836,66944.0,66943.0,2.54810596]
[1721553055498,0.00836,66944.0,66943.0,2.54810557]
[1721553055735,0.00836,66944.0,66943.0,2.33151228]
[1721553055979,0.00836,66944.0,66943.0,2.21980816]
[1721553056896,0.00836,66944.0,66943.0,1.88870888]
[1721553057101,0.00836,66944.0,66943.0,2.21981363]
[1721553057311,0.00836,66944.0,66943.0,2.21981373]
[1721553057942,0.00836,66944.0,66943.0,2.14401373]
[1721553058148,0.00836,66944.0,66943.0,2.23337812]
[1721553058354,0.00836,66944.0,66943.0,2.17138022]
[1721553059405,0.00836,66944.0,66943.0,1.75091127]
[1721553059610,0.00836,66944.0,66943.0,2.1713971]
[1721553060236,0.00836,66944.0,66943.0,2.17140688]
[1721553060458,0.00836,66944.0,66943.0,2.23340674]
[1721553062542,0.00836,66944.0,66943.0,2.23341161]
[1721553063368,0.00836,66944.0,66943.0,2.22941161]
[1721553063577,0.00836,66944.0,66943.0,2.22241161]
[1721553063800,0.00836,66944.0,66943.0,2.24241161]
[1721553064233,0.00836,66944.0,66943.0,2.22241161]
[1721553064453,0.00836,66944.0,66943.0,2.24541161]
[1721553065734,0.00836,66944.0,66943.0,2.24541368]
[1721553066586,0.00836,66944.0,66943.0,2.31331368]
[1721553066996,0.00836,66944.0,66943.0,2.24541368]
[1721553067842,0.00836,66944.0,66943.0,1.92207005]
[1721553068252,0.00836,66944.0,66943.0,1.92208291]
[1721553068468,0.07326,66944.0,66943.0,1.92208291]
[1721553068941,0.07326,66944.0,66943.0,1.21391274]
[1721553069152,0.00836,66944.0,66943.0,1.92210345]
[1721553069591,0.00836,66944.0,66943.0,1.99000345]
[1721553070012,0.00836,66944.0,66943.0,2.73810345]
[1721553070222,0.00836,66944.0,66943.0,2.0573542]
[1721553070452,0.00836,66944.0,66943.0,2.7973542]
[1721553070874,0.00836,66944.0,66943.0,2.6973542]
[1721553072140,0.00836,66944.0,66943.0,2.69732724]
[1721553072355,0.00836,66944.0,66943.0,2.16909948]
[1721553072558,0.00836,66944.0,66943.0,2.02879948]
[1721553072764,0.00836,66944.0,66943.0,2.09669948]
[1721553072967,0.00836,66944.0,66943.0,2.02879948]
[1721553074427,0.00836,66944.0,66943.0,2.18379922]
[1721553074840,0.00836,66944.0,66943.0,1.91702724]
[1721553075290,0.00836,66944.0,66943.0,1.54503326]
[1721553075494,0.00836,66944.0,66943.0,1.91703864]
[1721553076330,0.00836,66944.0,66943.0,2.02884892]
[1721553077567,0.00836,66944.0,66943.0,2.09674892]
[1721553077722,0.00836,66944.0,66943.0,2.02884892]
[1721553078532,0.00836,66944.0,66943.0,1.59181762]
[1721553078766,0.00836,66944.0,66943.0,2.09677128]
[1721553078958,0.00836,66944.0,66943.0,2.02887128]
[1721553079571,0.00836,66944.0,66943.0,2.09677128]
[1721553079789,0.00836,66944.0,66943.0,2.02887128]
[1721553080408,0.00836,66944.0,66943.0,1.91703953]
[1721553080619,0.00836,66944.0,66943.0,1.98493953]
[1721553080819,0.15156,66944.0,66943.0,1.91703953]
[1721553080992,0.15156,66944.0,66943.0,1.85503856]
[1721553081795,0.00836,66944.0,66943.0,1.21391274]
[1721553082002,0.00836,66944.0,66943.0,1.85506404]
[1721553082213,0.00836,66944.0,66943.0,1.85506245]
[1721553082422,0.00836,66944.0,66943.0,1.99466431]
[1721553082625,0.00836,66944.0,66943.0,2.65466431]
[1721553082834,0.00836,66944.0,66943.0,1.99466431]
[1721553083652,0.00836,66944.0,66943.0,2.06256431]
[1721553083857,0.00836,66944.0,66943.0,1.99466431]
[1721553084066,0.00836,66944.0,66943.0,1.29151274]
[1721553086004,0.00836,66944.0,66943.0,1.21391274]
[1721553086205,0.07086,66944.0,66943.0,1.21391274]
[1721553086989,0.07086,66944.0,66943.0,1.91703919]
[1721553087621,0.07086,66944.0,66943.0,1.21391274]
[1721553087857,0.07086,66944.0,66943.0,1.91703779]
[1721553090020,0.00836,66944.0,66943.0,1.91703779]
[1721553090238,0.00836,66944.0,66943.0,1.99463779]
[1721553090649,0.00836,66944.0,66943.0,2.88253779]
[1721553090852,0.00836,66944.0,66943.0,2.81463779]
[1721553091056,0.00836,66944.0,66943.0,2.72463688]
[1721553091257,0.00636,66944.0,66943.0,1.99463688]
[1721553091435,0.00636,66944.0,66943.0,2.78463688]
[1721553091999,0.00636,66944.0,66943.0,1.99463688]
[1721553092653,0.00636,66944.0,66943.0,1.91703688]
[1721553094014,0.00636,66944.0,66943.0,1.21391274]